Cogmind - Beta 10.2 --- EXPLORER MODE // 2021.01.04 @ 09:37:19 Player: Luigi Panache Result: Destroyed by S-27 Virus with Autogun Performance ------------- Evolutions (6) 3000 Regions Visited (17) 3400 Robots Destroyed (75) 375 Value Destroyed (3094) 3094 Prototype IDs (5) 100 Alien Tech Used (0) 0 Bonus (1323) 1323 TOTAL SCORE: 11292 Bonus ------- High Alert Combat Kills 79 Follower Combat Kills 244 Met Warlord at Base 500 MAIN.C Attacked Warlord 500 Cogmind --------- Core Integrity 0/1150 Matter 279/300 Energy 670/670 System Corruption 6% Temperature Cool (0) Movement Walking (120) Location -4/Upper Caves Parts ------- > --- POWER (1) -------- Light Antimatter Reactor > --- PROPULSION (2) --- Myomer Leg Myomer Leg > --- UTILITY (15) ----- Advanced Heat Sink Advanced Heat Sink Energy Well Advanced Signal Interpreter Advanced Signal Interpreter Improved Targeting Computer Improved Melee Analysis Suite Improved Phase Shifter > --- WEAPON (2) ------- Coil Gun Coil Gun > --- INVENTORY (4) ---- Flexi-carbon Leg Myomer Leg Point Defense Array Precision Grenade Launcher Peak State ------------ > --- POWER ------------ Light Antimatter Reactor > --- PROPULSION ------- Flexi-carbon Leg Flexi-carbon Leg > --- UTILITY ---------- Medium Storage Unit Energy Well Energy Well Energy Well Energy Well Advanced Energy Well Advanced Signal Interpreter Melee Analysis Suite Improved Core Analyzer System Shield > --- WEAPON ----------- Improved Lightning Gun Power Maul > --- INVENTORY -------- Field Propulsion Drive Impulse Thruster Matter Compressor Advanced Signal Interpreter Heavy EM Shotgun Disruptor Cannon Gauss Rifle Precision Grenade Launcher [Rating: 75] Favorites ----------- Power Ion Engine Engine Ion Engine Power Core Micro Nuclear Core Reactor Light Antimatter Reactor Propulsion Light Treads Treads Light Treads Leg Improved Titanium Leg Hover Unit Antigrav System Flight Unit Impulse Thruster Array Utility Improved Light Armor Plating Device Improved Heat Sink Storage High-capacity Storage Unit Processor Advanced Signal Interpreter Hackware System Shield Protection Improved Light Armor Plating Weapon EM Pulse Gun Energy Gun EM Pulse Gun Energy Cannon Disruptor Cannon Ballistic Gun Coil Gun Launcher Precision Grenade Launcher Impact Weapon Power Maul Slashing Weapon Greatsword Build | -11 -10 -10 -10 -9 -8 -7 -7 -7 -6 -5 -5 -5 -5 -4 -4 -4 -4 ------- Run | Scr Mat Min Exi Min Mat Fac Was Fac Fac Fac Upp Upp War Pro Fac Upp Upp Slots Evolved 13 | . 1 . . . 4 2 . . 2 2 . . . . 2 . . Power . | . . . . . . . . . . . . . . . . . . Propulsion . | . . . . . . . . . . . . . . . . . . Utility 13 | . 1 . . . 4 2 . . 2 2 . . . . 2 . . Weapon . | . . . . . . . . . . . . . . . . . . Parts Attached 149 | 2 13 . 2 3 15 2 3 26 6 14 3 3 . . 37 1 19 Power 14 | . 1 . . . 1 . 1 3 1 3 . . . . 3 . 1 Engine 2 | . 1 . . . 1 . . . . . . . . . . . . Core 7 | . . . . . . . . 3 1 3 . . . . . . . Reactor 5 | . . . . . . . 1 . . . . . . . 3 . 1 Propulsion 37 | 2 4 . . . 3 1 . 6 . 2 . . . . 12 . 7 Treads 12 | 2 4 . . . 3 1 . . . 1 . . . . . . 1 Leg 13 | . . . . . . . . 6 . . . . . . 3 . 4 Wheel . | . . . . . . . . . . . . . . . . . . Hover 1 | . . . . . . . . . . . . . . . 1 . . Flight 11 | . . . . . . . . . . 1 . . . . 8 . 2 Utility 66 | . 2 . 2 . 5 1 . 15 5 8 2 3 . . 16 . 7 Device 22 | . 1 . . . . 1 . 8 1 1 . 1 . . 5 . 4 Storage 15 | . . . 2 . . . . 2 . 3 . . . . 8 . . Processor 13 | . . . . . 4 . . . 2 1 2 1 . . 2 . 1 Hackware 1 | . . . . . . . . . . . . . . . 1 . . Protection 15 | . 1 . . . 1 . . 5 2 3 . 1 . . . . 2 Artifact . | . . . . . . . . . . . . . . . . . . Weapon 32 | . 6 . . 3 6 . 2 2 . 1 1 . . . 6 1 4 Energy Gun 19 | . 6 . . 1 5 . 2 1 . . . . . . 2 . 2 Energy Cannon 1 | . . . . . . . . . . . . . . . 1 . . Ballistic Gun 5 | . . . . 1 1 . . . . . . . . . 1 . 2 Ballistic Cannon . | . . . . . . . . . . . . . . . . . . Launcher 2 | . . . . 1 . . . . . . . . . . 1 . . Special Weapon . | . . . . . . . . . . . . . . . . . . Impact Weapon 2 | . . . . . . . . . . 1 . . . . 1 . . Slashing Weapon 3 | . . . . . . . . 1 . . 1 . . . . 1 . Piercing Weapon . | . . . . . . . . . . . . . . . . . . Special Melee Weapon . | . . . . . . . . . . . . . . . . . . Unidentified Prototypes 5 | . . . . . 1 . . . . . . . . . 4 . . Parts Lost 45 | . . . . 1 1 . 6 4 1 2 . 3 . 3 9 1 14 Power 4 | . . . . . 1 . 1 . . . . . . . 2 . . Propulsion 9 | . . . . . . . 1 2 . . . . . . 2 . 4 Utility 22 | . . . . . . . 2 2 1 1 . 3 . 3 2 1 7 Weapon 10 | . . . . 1 . . 2 . . 1 . . . . 3 . 3 Highest Loss Streak 11 | . . . . 1 1 . 6 2 1 1 . 3 . 3 6 1 11 Average Slot Usage (%) 78 | . 94 100 100 99 83 88 46 63 88 76 59 62 61 58 48 64 53 Engine 4 | . 12 12 12 12 8 7 3 . . . . . . . . . . Core 2 | . . . . . . . . 6 6 5 5 5 5 5 1 . . Treads 9 | . 24 25 25 25 16 14 5 . . 2 . . . . . . . Leg 3 | . . . . . . . . 12 12 1 . . . . 2 . 3 Flight 1 | . . . . . . . . . . 1 5 5 5 5 3 10 3 Device 9 | . 7 12 9 . . 3 2 23 13 8 5 5 5 4 1 10 8 Storage 11 | . 12 12 14 25 16 14 7 7 12 16 5 5 5 5 11 10 7 Processor 8 | . . . . . 16 28 15 . 6 11 16 20 22 20 16 25 21 Protection 11 | . 11 12 12 12 8 7 3 7 30 22 11 8 5 4 . . . Energy Gun 9 | . 24 25 25 19 14 14 7 . . . . . . . . . . Slashing Weapon 2 | . . . . . . . . 5 6 4 3 5 5 5 1 3 2 Naked Turns 29 | . . . . . . . 21 8 . . . . . . . . . Heaviest Build 95 | 17 19 19 58 58 66 68 68 78 80 95 25 29 27 27 51 19 31 Greatest Support 70 | 40 40 40 40 40 40 48 48 40 40 70 27 27 27 27 40 19 50 Greatest Overweight (x) 15 | . . . 1 1 1 1 15 3 1 2 . 1 8 . 7 . 5 Average Overweight (x) . | . . . . 1 1 1 . . 1 . . . . . . . . Largest Inventory Capacity 18 | 8 8 8 18 18 18 18 18 12 12 16 8 8 8 8 8 4 4 Average Capacity 10 | 8 8 8 12 18 18 18 11 6 12 11 8 8 8 8 7 4 4 Most Carried 18 | 7 8 8 10 15 18 18 18 12 12 15 8 8 8 8 8 4 4 Average Carried 9 | 7 7 8 8 11 17 18 11 5 11 11 8 8 8 8 6 4 3 Final Capacity 18 | 8 8 8 18 18 18 18 4 12 12 8 8 8 8 8 4 4 4 Final Carried 18 | 7 8 8 10 15 18 18 4 12 12 8 8 8 8 8 4 4 4 Class Distribution -------------------- 87% | Hacker-Mutant 7% | Scavenger-Mutant 5% | Hacker-Gladiator Dominant Class ---------------- Hacker-Mutant | -10/Materials Hacker-Mutant | -10/Mines Hacker-Mutant | -10/Exiles Hacker-Mutant | -9/Mines Hacker-Mutant | -8/Materials Hacker-Mutant | -7/Factory Hacker-Mutant | -7/Waste Hacker-Mutant | -7/Factory Hacker-Mutant | -6/Factory Hacker-Gladiator | -5/Factory Hacker-Mutant | -5/Upper Caves Hacker-Mutant | -5/Upper Caves Hacker-Mutant | -5/Warlord Hacker-Mutant | -4/Proximity Caves Hacker-Mutant | -4/Factory Hacker-Mutant | -4/Upper Caves Hacker-Mutant | -4/Upper Caves Resources | -11 -10 -10 -10 -9 -8 -7 -7 -7 -6 -5 -5 -5 -5 -4 -4 -4 -4 ----------- Run | Scr Mat Min Exi Min Mat Fac Was Fac Fac Fac Upp Upp War Pro Fac Upp Upp Matter Collected 2227 | 181 184 35 140 47 163 30 15 213 120 395 40 30 . . 230 37 367 Remotely . | . . . . . . . . . . . . . . . . . . Salvage Created 4207 | . 398 . . 76 943 . . 225 546 522 120 555 . 229 458 . 135 Parts 175 | . 16 . . . 55 . . 16 24 22 . 6 . 7 18 . 11 Haulers Intercepted 3 | . . . . . 2 . . . . 1 . . . . . . . Recyclers Shooed 5 | . . . . . . . . . 1 1 . . . . 3 . . Parts Field Recycled . | . . . . . . . . . . . . . . . . . . Retrieved Matter . | . . . . . . . . . . . . . . . . . . Parts Self-Destructed . | . . . . . . . . . . . . . . . . . . Prevented . | . . . . . . . . . . . . . . . . . . Kills | -11 -10 -10 -10 -9 -8 -7 -7 -7 -6 -5 -5 -5 -5 -4 -4 -4 -4 ------- Run | Scr Mat Min Exi Min Mat Fac Was Fac Fac Fac Upp Upp War Pro Fac Upp Upp Combat Hostiles Destroyed 62 | . 8 . . 8 11 . . 4 7 6 1 4 . 3 8 . 2 Melee 19 | . . . . . . . . 2 7 6 . 1 . . 1 . 2 Guns 25 | . 8 . . 4 9 . . 2 . . . . . . 2 . . Cannons 1 | . . . . . . . . . . . . . . . 1 . . AOE 6 | . . . . 4 . . . . . . . . . . 2 . . Classes Destroyed 16 | . 4 . . 1 9 . . 1 . . 1 . . . . . . Worker 3 | . . . . . 1 . . . . 2 . . . . . . . Builder 4 | . . . . . 3 . . 1 . . . . . . . . . Tunneler 1 | . . . . . 1 . . . . . . . . . . . . Hauler 3 | . . . . . 2 . . . . 1 . . . . . . . Recycler 4 | . 1 . . . 2 . . . 1 . . . . . . . . Minesweeper 1 | . . . . . . . . . . . 1 . . . . . . Operator 3 | . . . . . 2 . . 1 . . . . . . . . . Watcher 2 | . 1 . . . . . . . . 1 . . . . . . . Swarmer 5 | . 4 . . . 1 . . . . . . . . . . . . Grunt 21 | . 4 . . . 3 . . 3 1 4 . 3 . . 3 . . Brawler 1 | . . . . . 1 . . . . . . . . . . . . Duelist 1 | . . . . . 1 . . . . . . . . . . . . Sentry 8 | . . . . . 4 . . . 2 1 . 1 . . . . . Hunter 12 | . . . . . 1 . . . 2 1 1 . . 3 2 . 2 Programmer 6 | . . . . . . . . 1 2 . . . . . 3 . . Decomposer 1 | . . . . . . . . . . . 1 . . . . . . Assembled 8 | . . . . 8 . . . . . . . . . . . . . Best Kill Streak 6 | . 3 . . 6 6 . . 3 3 3 1 4 . 2 3 . 1 Combat Bots Only 6 | . 2 . . 6 3 . . 3 2 3 1 4 . 2 3 . 1 Max Kills in Single Turn 4 | . 2 . . 4 2 . . 1 1 1 1 1 . 1 1 . 1 Gunslinging 1 | . 1 . . . . . . . . . . . . . . . . Exploded 3 | . . . . 3 . . . . . . . . . . 1 . . Melee 1 | . . . . . . . . 1 1 1 . 1 . . 1 . 1 Uniques/NPCs Destroyed . | . . . . . . . . . . . . . . . . . . Combat | -11 -10 -10 -10 -9 -8 -7 -7 -7 -6 -5 -5 -5 -5 -4 -4 -4 -4 -------- Run | Scr Mat Min Exi Min Mat Fac Was Fac Fac Fac Upp Upp War Pro Fac Upp Upp Damage Taken 7118 | . 293 . . 301 325 . 352 848 814 409 28 509 65 308 1623 35 1208 Core 2385 | . 85 . . 56 33 . 283 327 60 96 . 99 28 168 520 . 630 Absorbed by Shields . | . . . . . . . . . . . . . . . . . . Core Remaining (%) 66 | 100 . . . 43 94 . . 12 92 . . . . 60 . . . Volleys Fired 113 | . 26 . . 14 32 . . 7 . . . . . . 26 . 8 Largest 2 | . 2 . . 2 2 . . 1 . . . . . . 1 . 2 Hottest 126 | . 80 . . 80 126 . . 65 . . . . . . 81 . 81 Shots Fired 184 | . 52 . . 26 64 . . 7 . . . . . . 25 . 10 Gun 166 | . 52 . . 24 64 . . 7 . . . . . . 9 . 10 Cannon 8 | . . . . . . . . . . . . . . . 8 . . Launcher 10 | . . . . 2 . . . . . . . . . . 8 . . Special . | . . . . . . . . . . . . . . . . . . Kinetic 20 | . . . . . 7 . . . . . . . . . 9 . 4 Thermal 24 | . 6 . . . 8 . . 7 . . . . . . . . 3 Explosive 10 | . . . . 2 . . . . . . . . . . 8 . . Electromagnetic 130 | . 46 . . 24 49 . . . . . . . . . 8 . 3 Robot Hit Streak 41 | . 20 . . 9 27 . . 34 . . . . . . 41 . 10 Robot Miss Streak 2 | . 2 . . 2 2 . . . . . . . . . 1 . 2 Penetration Max . | . . . . . . . . . . . . . . . . . . Secondary Targets 3 | . 1 . . 1 1 . . . . . . . . . . . . Max Gunslinging Chain 1 | . 1 . . 1 1 . . . . . . . . . . . . Shots Hit Robots 274 | . 42 . . 18 57 . . 13 26 21 4 24 . 12 49 . 8 Core Hits 153 | . 14 . . 17 34 . . 26 8 10 . 5 . 2 19 . 18 Critical Hits 5 | . . . . . 1 . . 1 2 1 . . . . . . . Critical Kills 2 | . . . . . 1 . . . 1 . . . . . . . . Critical Parts Destroyed 2 | . . . . . . . . 1 1 . . . . . . . . Melee Attacks 135 | . . . . . . . . 6 27 21 5 27 6 12 31 . . Impact 71 | . . . . . . . . . . . 4 22 6 10 29 . . Slashing 64 | . . . . . . . . 6 27 21 1 5 . 2 2 . . Piercing . | . . . . . . . . . . . . . . . . . . Sneak Attacks 11 | . . . . . . . . 3 2 4 2 . . . . . . Combat Hostiles 1 | . . . . . . . . . . . 1 . . . . . . Follow-up Attacks 7 | . . . . . . . . . . . . 3 . 2 2 . . Damage Inflicted 10422 | . 760 . . 557 1457 . . 885 1543 1540 244 1050 . 465 1679 . 242 Guns 2345 | . 588 . . 158 1128 . . 105 . . . . . . 165 . 201 Cannons 95 | . . . . . . . . . . . . . . . 95 . . Explosions 1355 | . 172 . . 383 329 . . . . . . . . . 471 . . Melee 6500 | . . . . . . . . 720 1543 1540 244 1050 . 465 938 . . Ramming 127 | . . . . 16 . . . 60 . . . . . . 10 . 41 Kinetic 370 | . . . . . 106 . . . . . . . . . 165 . 99 Thermal 670 | . 220 . . . 323 . . 105 . . . . . . . . 22 Explosive 854 | . . . . 383 . . . . . . . . . . 471 . . Electromagnetic 1901 | . 540 . . 158 1028 . . . . . . . . . 95 . 80 Impact 2466 | . . . . . . . . . . . 244 955 . 393 874 . . Slashing 4034 | . . . . . . . . 720 1543 1540 . 95 . 72 64 . . Piercing . | . . . . . . . . . . . . . . . . . . Highest Corruption 11 | . 1 1 1 1 . . 9 11 3 . . . . . 5 5 6 Average Corruption 4 | . 1 1 1 1 . . 6 10 2 . . . . . 4 5 5 Corruption Purged . | . . . . . . . . . . . . . . . . . . Effects 81 | . 2 2 2 5 . . 3 42 9 . . . . . 5 3 8 Message Errors 16 | . . . 2 2 . . . 7 . . . . . . . 1 4 Matter Fused 16 | . . . . . . . 2 10 . . . . . . 3 . 1 Heat Flow Errors 13 | . . . . . . . . 8 3 . . . . . 1 1 . Energy Discharges 10 | . 1 2 . . . . . 4 2 . . . . . . . 1 Parts Rejected 1 | . . . . . . . 1 . . . . . . . . . . Data Loss (minor) 8 | . . . . 1 . . . 3 3 . . . . . . 1 . Misdirections 10 | . . . . . . . . 10 . . . . . . . . . Targeting Errors 6 | . 1 . . 2 . . . . 1 . . . . . . . 2 Weapon Failures 1 | . . . . . . . . . . . . . . . 1 . . Overload Shots . | . . . . . . . . . . . . . . . . . . Overflow Damage 1210 | . 7 . . 45 . . . 148 202 333 92 228 . 56 99 . . Projectiles . | . . . . . . . . . . . . . . . . . . Explosions 83 | . 7 . . 45 . . . . . . . . . . 31 . . Melee 1127 | . . . . . . . . 148 202 333 92 228 . 56 68 . . Knockbacks 19 | . . . . 1 . . . . . . 2 5 . 3 8 . . Impact 19 | . . . . 1 . . . . . . 2 5 . 3 8 . . Kinetic . | . . . . . . . . . . . . . . . . . . Secondary . | . . . . . . . . . . . . . . . . . . Self-Inflicted Damage 217 | . 39 . . 53 68 . . 14 . . . . . . 33 . 10 Shots 8 | . 2 . . 2 3 . . . . . . . . . 1 . . Rammed 63 | . . . . 3 . . . 24 . . . . . . 2 . 34 Targets Rammed 72 | . . . . 3 . . . 33 . . . . . . 2 . 34 Kicked 9 | . . . . . . . . 9 . . . . . . . . . Crushed . | . . . . . . . . . . . . . . . . . . Highest Temperature 288 | . 156 . . 204 288 . . 184 233 . . . . . 184 219 . Average Temperature 85 | . 52 . . 106 90 . . 66 114 . . . . . 104 121 . Received Heat Transfer 1873 | . 120 . . 40 162 . . 735 36 153 . 288 21 . 309 9 . Siege Activations . | . . . . . . . . . . . . . . . . . . Robots Corrupted 2 | . . . . . 2 . . . . . . . . . . . . Combat Hostiles 2 | . . . . . 2 . . . . . . . . . . . . Parts Fried 22 | . . . . . 9 . . . . . 5 4 . 3 1 . . Impact Corruptions 28 | . . . . . . . . . . . 8 11 . 3 6 . . Robots Melted . | . . . . . . . . . . . . . . . . . . Combat Hostiles . | . . . . . . . . . . . . . . . . . . Parts Melted 1 | . . . . . 1 . . . . . . . . . . . . Heat Transferred 1105 | . 350 . . . 459 . . 259 . . . . . . . . 37 Parts Sabotaged . | . . . . . . . . . . . . . . . . . . Parts Stolen . | . . . . . . . . . . . . . . . . . . Parts Stripped . | . . . . . . . . . . . . . . . . . . Power Chain Reactions 7 | . 3 . . . 4 . . . . . . . . . . . . Missiles Intercepted . | . . . . . . . . . . . . . . . . . . Alert | -11 -10 -10 -10 -9 -8 -7 -7 -7 -6 -5 -5 -5 -5 -4 -4 -4 -4 ------- Run | Scr Mat Min Exi Min Mat Fac Was Fac Fac Fac Upp Upp War Pro Fac Upp Upp Peak Influence 651 | . 125 8 . 4 435 79 30 469 420 651 . . . . 202 . . Initial 79 | . . 8 . . . 79 18 10 64 76 . . . . 19 . . Average 80 | . 36 6 . . 187 79 13 75 66 208 . . . . 74 . . Maximum Alert Level 2 | . . . . . 2 . . 2 2 2 . . . . 1 . . Low Security (%) 89 | 100 100 100 . 100 45 100 100 92 93 74 . . . . 98 . . Level 1 6 | . . . . . 53 . . . 5 . . . . . 1 . . Level 2 4 | . . . . . . . . 7 . 25 . . . . . . . Level 3 . | . . . . . . . . . . . . . . . . . . Level 4 . | . . . . . . . . . . . . . . . . . . Level 5 . | . . . . . . . . . . . . . . . . . . High Security . | . . . . . . . . . . . . . . . . . . Max Security . | . . . . . . . . . . . . . . . . . . Squads Dispatched 12 | . . . . . 1 . . 2 3 3 . . . . 3 . . Investigation 2 | . . . . . . . . . . . . . . . 2 . . Extermination 4 | . . . . . . . . 1 2 . . . . . 1 . . Reinforcement 6 | . . . . . 1 . . 1 1 3 . . . . . . . Assault . | . . . . . . . . . . . . . . . . . . Garrison . | . . . . . . . . . . . . . . . . . . Intercept . | . . . . . . . . . . . . . . . . . . Construction Impeded . | . . . . . . . . . . . . . . . . . . Haulers Reinforced 1 | . . . . . . . . . . 1 . . . . . . . Stealth | -11 -10 -10 -10 -9 -8 -7 -7 -7 -6 -5 -5 -5 -5 -4 -4 -4 -4 --------- Run | Scr Mat Min Exi Min Mat Fac Was Fac Fac Fac Upp Upp War Pro Fac Upp Upp Distress Signals 9 | . 2 . . . 1 . . 2 1 3 . . . . . . . Communications Jammed . | . . . . . . . . . . . . . . . . . . Distress Signals . | . . . . . . . . . . . . . . . . . . Times Spotted 146 | . 14 . . 13 18 . 6 13 14 22 1 5 9 6 15 4 6 Peak Tracking Total 11 | . 3 . . 11 4 . 6 4 3 9 1 4 6 4 4 9 4 Tactical Retreats 13 | . . . . 3 1 . . 1 . 3 . 1 . . . 4 . Traps | -11 -10 -10 -10 -9 -8 -7 -7 -7 -6 -5 -5 -5 -5 -4 -4 -4 -4 ------- Run | Scr Mat Min Exi Min Mat Fac Was Fac Fac Fac Upp Upp War Pro Fac Upp Upp Traps Triggered 5 | . 3 . . . . 1 . . . 1 . . . . . . . Indirectly . | . . . . . . . . . . . . . . . . . . Trap Hack Attempts . | . . . . . . . . . . . . . . . . . . Triggered . | . . . . . . . . . . . . . . . . . . Disarmed . | . . . . . . . . . . . . . . . . . . Reprogrammed . | . . . . . . . . . . . . . . . . . . Reused . | . . . . . . . . . . . . . . . . . . Traps Extracted . | . . . . . . . . . . . . . . . . . . Installed . | . . . . . . . . . . . . . . . . . . Triggered 6 | . . . . . . . . . . . . 1 3 2 . . . Machines | -11 -10 -10 -10 -9 -8 -7 -7 -7 -6 -5 -5 -5 -5 -4 -4 -4 -4 ---------- Run | Scr Mat Min Exi Min Mat Fac Was Fac Fac Fac Upp Upp War Pro Fac Upp Upp Machines Disabled 6 | . 1 . . 1 4 . . . . . . . . . . . . Max in Single Turn 1 | . 1 . . 1 1 . . . . . . . . . . . . Garrison Access 2 | . . . . . . . . 1 . . . . . . 1 . . Machines Sabotaged . | . . . . . . . . . . . . . . . . . . Garrisons Compromised . | . . . . . . . . . . . . . . . . . . Overloaded Fab Kills . | . . . . . . . . . . . . . . . . . . Fab Network Shutdowns 3 | . . . . . . . . 1 1 1 . . . . . . . Hacking | -11 -10 -10 -10 -9 -8 -7 -7 -7 -6 -5 -5 -5 -5 -4 -4 -4 -4 --------- Run | Scr Mat Min Exi Min Mat Fac Was Fac Fac Fac Upp Upp War Pro Fac Upp Upp Machines Accessed 33 | . 8 . 1 . 3 1 . 6 6 4 . . 1 . 3 . . Terminals 14 | . 5 . . . 3 . . 1 2 2 . . . . 1 . . Fabricators 8 | . . . . . . 1 . 2 3 2 . . . . . . . Repair Stations 3 | . 1 . . . . . . 1 . . . . . . 1 . . Recycling Units 3 | . 2 . . . . . . 1 . . . . . . . . . Scanalyzers 1 | . . . . . . . . . 1 . . . . . . . . Garrison Access 2 | . . . . . . . . 1 . . . . . . 1 . . Total Hacks 94 | . 28 . 1 . 11 2 . 19 16 7 . . 1 . 9 . . Successful 56 | . 23 . 1 . 6 1 . 9 9 4 . . 1 . 2 . . Failed 38 | . 5 . . . 5 1 . 10 7 3 . . . . 7 . . Catastrophic 5 | . 1 . . . 1 . . 1 . 1 . . . . 1 . . Database Lockouts . | . . . . . . . . . . . . . . . . . . Manual 34 | . 9 . . . 7 . . 5 9 2 . . . . 2 . . Terminals 41 | . 13 . . . 11 . . 3 9 3 . . . . 2 . . Fabricators 17 | . . . . . . 2 . 7 4 4 . . . . . . . Repair Stations 19 | . 12 . . . . . . 3 . . . . . . 4 . . Recycling Units 8 | . 3 . . . . . . 5 . . . . . . . . . Scanalyzers 3 | . . . . . . . . . 3 . . . . . . . . Garrison Access 4 | . . . . . . . . 1 . . . . . . 3 . . Terminal Hacks 20 | . 6 . 1 . 6 . . 1 4 1 . . 1 . . . . Record 3 | . . . 1 . 1 . . . . . . . 1 . . . . Robot Analysis 1 | . . . . . 1 . . . . . . . . . . . . Level Access Points 2 | . . . . . 1 . . . 1 . . . . . . . . Branch Access Points 2 | . . . . . 1 . . . . 1 . . . . . . . Emergency Access Points 1 | . 1 . . . . . . . . . . . . . . . . Terminal Index 3 | . . . . . 1 . . 1 1 . . . . . . . . Unreport Threat 4 | . 2 . . . . . . . 2 . . . . . . . . Locate Traps 1 | . 1 . . . . . . . . . . . . . . . . Recall Reinforcements 1 | . . . . . 1 . . . . . . . . . . . . Hauler Manifests 1 | . 1 . . . . . . . . . . . . . . . . Zone Layout 1 | . 1 . . . . . . . . . . . . . . . . Fabricator Hacks 9 | . . . . . . 1 . 3 3 2 . . . . . . . Network Status 1 | . . . . . . . . 1 . . . . . . . . . Build 8 | . . . . . . 1 . 2 3 2 . . . . . . . Repair Station Hacks 15 | . 12 . . . . . . 2 . . . . . . 1 . . Scan Component 8 | . 6 . . . . . . 1 . . . . . . 1 . . Repair 7 | . 6 . . . . . . 1 . . . . . . . . . Recycling Unit Hacks 1 | . 1 . . . . . . . . . . . . . . . . Retrieve Components 1 | . 1 . . . . . . . . . . . . . . . . Scanalyzer . | . . . . . . . . . . . . . . . . . . Garrison Access Hacks 2 | . . . . . . . . 1 . . . . . . 1 . . Seal Access 2 | . . . . . . . . 1 . . . . . . 1 . . Unauthorized Hacks 9 | . 4 . . . . . . 2 2 1 . . . . . . . Terminals 5 | . 2 . . . . . . . 2 1 . . . . . . . Track 2 | . 1 . . . . . . . 1 . . . . . . . . Botnet 3 | . 1 . . . . . . . 1 1 . . . . . . . Fabricators 1 | . . . . . . . . 1 . . . . . . . . . Prioritize 1 | . . . . . . . . 1 . . . . . . . . . Repair Stations . | . . . . . . . . . . . . . . . . . . Recycling Units 3 | . 2 . . . . . . 1 . . . . . . . . . Mask 3 | . 2 . . . . . . 1 . . . . . . . . . Scanalyzers . | . . . . . . . . . . . . . . . . . . Garrison Access . | . . . . . . . . . . . . . . . . . . Data Cores Recovered 1 | . . . . . 1 . . . . . . . . . . . . Used 1 | . . . . . 1 . . . . . . . . . . . . Hacking Detections 26 | . 6 . . . 2 1 . 4 6 4 . . . . 3 . . Full Trace Events 2 | . . . . . . . . . . . . . . . 2 . . Feedback Events . | . . . . . . . . . . . . . . . . . . Feedback Blocked . | . . . . . . . . . . . . . . . . . . Robot Schematics Acquired . | . . . . . . . . . . . . . . . . . . Robots Built 7 | . . . . . . . . 3 3 1 . . . . . . . Matter 876 | . . . . . . . . 252 471 153 . . . . . . . Time 253 | . . . . . . . . 67 105 81 . . . . . . . Total Robot Build Rating 24 | . . . . . . . . 12 11 1 . . . . . . . Part Schematics Acquired . | . . . . . . . . . . . . . . . . . . Parts Built 4 | . . . . . . 1 . 2 . 1 . . . . . . . Matter 658 | . . . . . . 212 . 190 . 256 . . . . . . . Time 190 | . . . . . . 53 . 95 . 42 . . . . . . . Total Part Build Rating 24 | . . . . . . 6 . 10 . 8 . . . . . . . Parts Repaired 7 | . 6 . . . . . . 1 . . . . . . . . . Time 186 | . 156 . . . . . . 30 . . . . . . . . . Parts Recycled . | . . . . . . . . . . . . . . . . . . Recycled Matter . | . . . . . . . . . . . . . . . . . . Retrieved Matter . | . . . . . . . . . . . . . . . . . . Retrieved Components 3 | . 3 . . . . . . . . . . . . . . . . Parts Scanalyzed . | . . . . . . . . . . . . . . . . . . Part Schematics Acquired . | . . . . . . . . . . . . . . . . . . Parts Damaged . | . . . . . . . . . . . . . . . . . . Bothacking | -11 -10 -10 -10 -9 -8 -7 -7 -7 -6 -5 -5 -5 -5 -4 -4 -4 -4 ------------ Run | Scr Mat Min Exi Min Mat Fac Was Fac Fac Fac Upp Upp War Pro Fac Upp Upp Used RIF Installer . | . . . . . . . . . . . . . . . . . . Robots Hacked . | . . . . . . . . . . . . . . . . . . Non-combat . | . . . . . . . . . . . . . . . . . . Combat . | . . . . . . . . . . . . . . . . . . Robot Hacks Applied . | . . . . . . . . . . . . . . . . . . Relay Couplers Released . | . . . . . . . . . . . . . . . . . . Robots Rewired 4 | . . . . . . . . . . . . . 4 . . . . Allies Hacked 2 | . . . . . . . . . 2 . . . . . . . . Hacks Repelled . | . . . . . . . . . . . . . . . . . . Allies | -11 -10 -10 -10 -9 -8 -7 -7 -7 -6 -5 -5 -5 -5 -4 -4 -4 -4 -------- Run | Scr Mat Min Exi Min Mat Fac Was Fac Fac Fac Upp Upp War Pro Fac Upp Upp Total Allies 11 | . . . . . . . . 3 3 1 . . 4 . . . . Largest Group 4 | . . . . . . . . 3 3 1 . . 4 . . . . Highest-Rated Group 196 | . . . . . . . . 90 88 8 . . 196 . . . . Highest-Rated Ally 60 | . . . . . . . . 30 32 8 . . 60 . . . . Total Orders . | . . . . . . . . . . . . . . . . . . Ally Attacks 27 | . . . . . . . . 8 19 . . . . . . . . Total Damage 733 | . . . . . . . . 284 449 . . . . . . . . Kills 7 | . . . . . . . . 3 4 . . . . . . . . Allies Corrupted 1 | . . . . . . . 1 . . . . . . . . . . Allies Melted . | . . . . . . . . . . . . . . . . . . Intel | -11 -10 -10 -10 -9 -8 -7 -7 -7 -6 -5 -5 -5 -5 -4 -4 -4 -4 ------- Run | Scr Mat Min Exi Min Mat Fac Was Fac Fac Fac Upp Upp War Pro Fac Upp Upp Robot Analysis Total 1 | . . . . . 1 . . . . . . . . . . . . Derelict Logs Recovered 6 | . . 1 . . . . . . . . 1 1 . 1 . 2 . Drone Launches 3 | . . . . . . . 3 . . . . . . . . . . Drone Recoveries . | . . . . . . . . . . . . . . . . . . Exploration | -11 -10 -10 -10 -9 -8 -7 -7 -7 -6 -5 -5 -5 -5 -4 -4 -4 -4 ------------- Run | Scr Mat Min Exi Min Mat Fac Was Fac Fac Fac Upp Upp War Pro Fac Upp Upp Turns Passed 8845 | 3 1196 471 720 407 647 217 121 1315 995 672 148 371 222 172 577 213 378 Spaces Moved 6025 | 1 548 288 406 194 285 90 100 722 499 432 332 356 454 308 468 268 274 Core 167 | . . . . . . . 69 41 . . . . 2 . 38 . 17 Treads 2013 | 1 548 288 406 194 285 90 31 . . 168 . . . . . . 2 Legs 1415 | . . . . . . . . 681 499 56 . . . . 91 . 88 Wheels . | . . . . . . . . . . . . . . . . . . Hover 1 | . . . . . . . . . . . . . . . 1 . . Flight 2429 | . . . . . . . . . . 208 332 356 452 308 338 268 167 Fastest Speed 34 | 160 160 160 160 180 180 180 50 50 160 40 40 40 40 40 34 37 37 Average Speed 112 | 160 160 160 176 180 180 180 110 140 160 110 40 42 41 40 79 37 80 Slowest Speed 800 | 160 160 160 180 180 180 180 800 200 160 190 40 120 450 40 400 37 300 Overloaded Moves . | . . . . . . . . . . . . . . . . . . Propulsion Burnouts . | . . . . . . . . . . . . . . . . . . Robots Hopped 13 | . . . . . . . . . . 7 . . 4 . 1 1 . Cave-ins Triggered . | . . . . . . . . . . . . . . . . . . Exploration Rate (%) 43 | 2 85 60 78 63 31 4 81 16 14 14 54 54 62 56 11 60 42 Regions Visited 17 Branch Regions 9 Pre-discovered Areas 1 | . . . 1 . . . . . . . . . . . . . . Known Exits Taken 15 | 1 1 1 1 1 1 . . 1 1 1 1 1 1 1 1 1 . Unknown Exits Taken . | . . . . . . . . . . . . . . . . . . Scrap Searched 10 | . . . . . . . . . . . 3 2 . 1 . 2 2 Spaces Dug 13 | . . . . . . . . . . . . 1 5 . 7 . . Terrain Destroyed 70 | . 8 . . 16 13 . . . . . . 1 5 . 27 . . Melee 6 | . . . . . . . . . . . . 1 5 . . . . Projectile . | . . . . . . . . . . . . . . . . . . AOE 64 | . 8 . . 16 13 . . . . . . . . . 27 . . Terrain Rammed . | . . . . . . . . . . . . . . . . . . Walls Destroyed . | . . . . . . . . . . . . . . . . . . Machines Disabled . | . . . . . . . . . . . . . . . . . . Actions | -11 -10 -10 -10 -9 -8 -7 -7 -7 -6 -5 -5 -5 -5 -4 -4 -4 -4 --------- Run | Scr Mat Min Exi Min Mat Fac Was Fac Fac Fac Upp Upp War Pro Fac Upp Upp Total 7663 | 2 813 298 411 223 357 146 109 988 647 587 338 543 475 344 600 379 403 Wait 1053 | . 218 11 . 5 7 53 7 177 101 92 . 162 3 27 17 112 61 Move 5984 | . 547 287 405 193 284 90 99 721 498 418 331 355 445 307 465 265 274 Hop 12 | . . . . . . . . . . 6 . . 4 . 1 1 . Pick Up 49 | . 4 . 2 5 7 . . 11 7 10 . . . . 1 . 2 Fast Attach 103 | . 8 . 1 . 9 1 3 20 3 11 3 3 . . 26 1 14 Attach 15 | . 1 . . 1 . . . 2 1 1 . . . . 7 . 2 Detach 9 | . . . . . 1 . . . . 2 . . . . 6 . . Swap 31 | 2 4 . 1 2 6 1 . 4 2 2 . . . . 4 . 3 Drop 80 | . 5 . 2 . 11 1 . 7 8 24 . 1 . . 16 . 5 Fire 113 | . 26 . . 14 32 . . 7 . . . . . . 26 . 8 Melee 125 | . . . . . . . . 6 27 21 4 22 6 10 29 . . Ram 25 | . . . . . . . . 8 . . . . . . . . 17 Kick 27 | . . . . . . . . 25 . . . . . . 2 . . Crush 20 | . . . . 3 . . . . . . . . . . . . 17 Escape Stasis . | . . . . . . . . . . . . . . . . . . Rewire 17 | . . . . . . . . . . . . . 17 . . . . Trap . | . . . . . . . . . . . . . . . . . . Miscellaneous . | . . . . . . . . . . . . . . . . . . Route ------- -11/Scrapyard -10/Materials (discovered 5 exits: *Mat x3 / *Min x2) -10/Mines (discovered 3 exits: *Mat x2 / *Exi) -10/Exiles -9/Mines -8/Materials (discovered 3 exits: *Fac x3) -7/Factory -7/Waste -7/Factory -6/Factory (discovered 4 exits: *Fac x4) -5/Factory (discovered 2 exits: *Upp x2) -5/Upper Caves -5/Upper Caves -5/Warlord -4/Proximity Caves -4/Factory -4/Upper Caves -4/Upper Caves (discovered 1 exit: *Res) History --------- Turn | Location | Event 4 | -11/Scrapyard | Identified exit to Materials 4 | -11/Scrapyard | Discovered exit to Materials (range 0) 4 | -11/Scrapyard | Entered Materials 4 | -10/Materials | Evolved 1 slot: Utility x1 129 | -10/Materials | Identified exit to Materials 129 | -10/Materials | Discovered exit to Materials (range 5) 235 | -10/Materials | Identified exit to Mines 235 | -10/Materials | Discovered exit to Mines (range 16) 307 | -10/Materials | Build established: Hacker-Mutant 513 | -10/Materials | Discovered exit to Materials (range 10) 611 | -10/Materials | Discovered exit to Mines (range 14) 756 | -10/Materials | Repaired EM Pulse Gun 783 | -10/Materials | Repaired EM Pulse Gun 811 | -10/Materials | Repaired Lgt. Treads 838 | -10/Materials | Repaired Propulsion Shielding 866 | -10/Materials | Repaired Lgt. Treads 893 | -10/Materials | Repaired Lgt. Treads 983 | -10/Materials | Discovered exit to Materials (range 16) 1200 | -10/Materials | Entered Mines 1277 | -10/Mines | Discovered exit to Materials (range 11) 1296 | -10/Mines | Met a Derelict bent on vengeance 1467 | -10/Mines | Deemed a non-threat by the Exiles lab entrance 1469 | -10/Mines | Identified exit to Exiles 1469 | -10/Mines | Discovered exit to Exiles (range 5) 1558 | -10/Mines | Learned Materials emergency access door positions 1563 | -10/Mines | Discovered exit to Materials (range 10) 1671 | -10/Mines | Entered Exiles 1711 | -10/Exiles | Met 8R-AWN 1737 | -10/Exiles | Met EX-HEX 1826 | -10/Exiles | Met EX-DEC 1870 | -10/Exiles | Visited The Gauntlet 2178 | -10/Exiles | Learned location of Zion (-7) 2373 | -10/Exiles | Identified exit to Mines 2373 | -10/Exiles | Discovered exit to Mines (range 12) 2391 | -10/Exiles | Entered Mines 2429 | -9/Mines | Found a hidden stash of uninstalled traps 2537 | -9/Mines | Received a Rocket Launcher from a helpful Derelict 2573 | -9/Mines | Assembled infested the area 2611 | -9/Mines | Core integrity fell below 50% 2778 | -9/Mines | Identified exit to Materials 2778 | -9/Mines | Discovered exit to Materials (range 11) 2798 | -9/Mines | Entered Materials 2798 | -8/Materials | Evolved 4 slots: Utility x4 3242 | -8/Materials | Identified exit to Factory 3445 | -8/Materials | Entered Factory 3445 | -7/Factory | Evolved 2 slots: Utility x2 3558 | -7/Factory | Fabricated Mni. Drone Bay (x1) 3662 | -7/Factory | Sucked down chute 3662 | -7/Factory | Entered Waste 3677 | -7/Waste | EMP discharged 3693 | -7/Waste | Spotted C-40 Crusher 3700 | -7/Waste | Crushed by Compactor (1 part destroyed, 2 dropped) 3707 | -7/Waste | Spotted C-40 Crusher 3714 | -7/Waste | Spotted C-40 Crusher 3720 | -7/Waste | Crushed by Compactor (1 part destroyed, 1 dropped) 3726 | -7/Waste | Crushed by Compactor (1 part destroyed, 1 dropped) 3729 | -7/Waste | Crushed by Compactor (1 part destroyed, 2 dropped) 3730 | -7/Waste | Crushed by Compactor (1 part destroyed, 2 dropped) 3737 | -7/Waste | Spotted C-40 Crusher 3741 | -7/Waste | Spotted C-40 Crusher 3750 | -7/Waste | Spotted C-40 Crusher 3760 | -7/Waste | Crushed by Compactor (1 part destroyed) 3763 | -7/Waste | Identified exit to Factory 3763 | -7/Waste | Discovered exit to Factory (range 14) 3777 | -7/Waste | EMP discharged 3783 | -7/Waste | Entered Factory 3791 | -7/Factory | Lost 6 parts (1p1n2u2w) 3801 | -7/Factory | Released all parts (1) 3860 | -7/Factory | Core integrity fell below 50% 3946 | -7/Factory | System corruption reached 10% 3962 | -7/Factory | Core integrity fell below 20% 4164 | -7/Factory | Repaired Broken Mic. Nuclear Core 4263 | -7/Factory | Build established: Scavenger-Mutant 4615 | -7/Factory | Fabricated System Guard (x2) 4759 | -7/Factory | Build established: Hacker-Mutant 4852 | -7/Factory | Fabricated L-41 Fighter? 4890 | -7/Factory | Local fabrication network quarantined 5063 | -7/Factory | Identified exit to Factory 5063 | -7/Factory | Discovered exit to Factory (range 16) 5098 | -7/Factory | Entered another Factory area 5098 | -6/Factory | Accompanied by 2 allies 5098 | -6/Factory | Evolved 2 slots: Utility x2 5227 | -6/Factory | Fabricated O-24 Administrator (x1) 5373 | -6/Factory | Fabricated Y-54 Guardian? 5893 | -6/Factory | Local fabrication network quarantined 6034 | -6/Factory | Identified exit to Factory 6093 | -6/Factory | Entered another Factory area 6093 | -5/Factory | Evolved 2 slots: Utility x2 6222 | -5/Factory | Fabricated R-06 Scavenger? 6526 | -5/Factory | Build established: Hacker-Gladiator 6580 | -5/Factory | Fabricated Impulse Thruster Array (x1) 6592 | -5/Factory | Local fabrication network quarantined 6737 | -5/Factory | Identified exit to Upper Caves 6765 | -5/Factory | Entered Upper Caves 6774 | -5/Upper Caves | Learned Factory garrison access intel 6903 | -5/Upper Caves | Encountered a Warlord checkpoint 6911 | -5/Upper Caves | Identified exit to Upper Caves 6911 | -5/Upper Caves | Discovered exit to Upper Caves (range 3) 6913 | -5/Upper Caves | Entered another Upper Caves area 7014 | -5/Upper Caves | Build established: Hacker-Mutant 7101 | -5/Upper Caves | Attracted the attention of an 0b10 checkpoint 7155 | -5/Upper Caves | Lost 3 parts (3u) 7157 | -5/Upper Caves | Learned Factory emergency access door positions 7279 | -5/Upper Caves | Identified exit to Warlord 7279 | -5/Upper Caves | Discovered exit to Warlord (range 15) 7284 | -5/Upper Caves | Entered Warlord 7390 | -5/Warlord | Met Warlord 7415 | -5/Warlord | Warlord's base attacked by MAIN.C 7502 | -5/Warlord | Identified exit to Proximity Caves 7502 | -5/Warlord | Discovered exit to Proximity Caves (range 12) 7506 | -5/Warlord | Entered Proximity Caves 7631 | -4/Proximity Caves | Learned Research trap positions 7672 | -4/Proximity Caves | Identified exit to Factory 7672 | -4/Proximity Caves | Discovered exit to Factory (range 16) 7678 | -4/Proximity Caves | Entered Factory 7678 | -4/Factory | Evolved 2 slots: Utility x2 7680 | -4/Factory | Loaded intel: 3 garrison access locations 7691 | -4/Factory | Lost 3 parts (3u) 7854 | -4/Factory | Lost 3 parts (1p1n1w) 8173 | -4/Factory | Lost 6 parts (1p1n2u2w) 8201 | -4/Factory | Identified exit to Upper Caves 8201 | -4/Factory | Discovered exit to Upper Caves (range 18) 8255 | -4/Factory | Entered Upper Caves 8270 | -4/Upper Caves | Learned Research emergency access door positions 8275 | -4/Upper Caves | Attracted the attention of an 0b10 outpost 8311 | -4/Upper Caves | Encountered a Warlord checkpoint 8441 | -4/Upper Caves | Learned Research terminal intel 8464 | -4/Upper Caves | Identified exit to Upper Caves 8464 | -4/Upper Caves | Discovered exit to Upper Caves (range 10) 8468 | -4/Upper Caves | Entered another Upper Caves area 8470 | -4/Upper Caves | Identified exit to Research 8470 | -4/Upper Caves | Discovered exit to Research (range 4) 8563 | -4/Upper Caves | Encountered a Warlord checkpoint 8611 | -4/Upper Caves | Core integrity fell below 50% 8662 | -4/Upper Caves | Core integrity fell below 20% 8692 | -4/Upper Caves | Lost 11 parts (2n6u3w) 8846 | -4/Upper Caves | Destroyed by S-27 Virus with Autogun Last Messages --------------- 08748_ Acquired 10 matter. 08752_ Acquired Adv. Heat Sink. 08810_ Acquired 3 matter. 08815_ Acquired 1 matter. 08816_ Acquired 4 matter. 08820_ Acquired 1 matter. 08821_ Acquired 5 matter. 08822_ Acquired 1 matter. 08823_ Acquired 3 matter. 08827_ Acquired 2 matter. 08837_ Acquired Tractor Beam. 08837_ Tractor Beam destroyed. 08841_ System corrupted: Coil Gun targeting data glitched. 08841_ Slug penetrates S-27 Virus. 08841_ Slug penetrates Wall. 08841_ Slug penetrates S-27 Virus. 08841_ Destroyed VTOL Module. 08844_ NBUS<&Z7SVFS6&CJ11MTAU 08844_ Slug penetrates S-27 Virus. 08844_ Slug penetrates Wall. Map ----- +----------------------------------------------------+ | ????????????## #???????# #????## ##? | | ????????????# ##?#???? #?????## #?? | | ????????????# ###?####?? ??????## ?? | | ????????????# ##### #? ??????# ?? | | ????????????## #?? ???????# ? | | ?????????????## ### #??# ????????#?? | | ??????????????# ??# ##?? ###????? ????? | | ??????????????# ??## ##? #????????????? | | ??????????????## ???# #? ?????????????? | | ???????????????##???# #??????????????????? | | ????????????????????## ##?????????????#????? | | ?????????????????????# ##??????????????????? | | ?????????????????????# #??????????????????? | | ?????????????????????## #??????????????????? | | ??????????????????????## ##??????????????????? | | ???????????????????????# ##???????????????????? | | ???????????????????????### #????????????????????? | | ????????????????????????## #????????????????????? | | ????????????????????????# #????????????????????? | | ?????????????????????#### #####????????????????? | | ?????????????????????# %##???????????????? | | ?????????????????????# ## #???????????????? | | ?????????????????????#??## ##??????????????? | | ?????????????????????????# #??????????????? | | ????????????????????????##s #??????????????? | | ???????????# #####%##@ #??????????????? | | ????????? %s ???????? | | ????????? % s ???????? | | ????????? ### % #### ##### ###???????? | | ????????????????#% ????## #?????##?????????? | | ????????????????# ???????## ##????????????????? | | ???????????????#%?????????# #?????????????????? | | ??????????????????????????# #?????????????????? | | ??????????????????????????# #????????????????? | | ??????????????????????????## ##????????????????? | | ???????????????????????????#####?????????????????? | | ?????????????????????????????????????????????????? | | ?????????????????????????????????????????????????? | | ?????????????????????????????????????????????????? | | ?????????????????????????????????????????????????? | | ?????????????????????????????????????????????????? | | ?????????????????????????????????????????????????? | | ?????????????????????????????????????????????????? | | ?????????????????????????????????????????????????? | | ?????????????????????????????????????????????????? | | ?????????????????????????????????????????????????? | | ?????????????????????????????????????????????????? | | ?????????????????????????????????????????????????? | | ?????????????????????????????????????????????????? | | ?????????????????????????????????????????????????? | +----------------------------------------------------+ Best States ------------- Heat Dissipation 81 Coolant Potential 80 Energy Generation 21 Energy Capacity 2970 Matter Stores 370 Matter Capacity 550 Sight Range 20 Terrain Scan Range 24 Terrain Scan Density 10 Corruption Prevention 24 Armor Coverage 975 Resistance: KI 55 Resistance: TH 35 Resistance: EX 35 Resistance: EM 35 Resistance: I 35 Resistance: S 35 Resistance: P 35 Propulsion Shielding 33 Reclamation Efficiency 15 Melee Speed Boost 20 Phase Shifting 10 Evasion (%) 63 Targeting Accuracy 13 Melee Accuracy 13 Core Analysis 8 Recoil Reduction 2 Salvage Targeting 2 Offensive Hacking 20 Defensive Hacking 10 Item Schematics ----------------- None Robot Schematics ------------------ None Fabricated ------------ Mni. Drone Bay | x1 | -7/Factory | Preloaded System Guard | x2 | -7/Factory | Preloaded L-41 Fighter | x3 | -7/Factory | Preloaded O-24 Administrator | x1 | -6/Factory | Preloaded Y-54 Guardian | x2 | -6/Factory | Preloaded R-06 Scavenger | x1 | -5/Factory | Preloaded Impulse Thruster Array | x1 | -5/Factory | Preloaded Alien Tech Used ----------------- None Achievements -------------- None Challenges ------------ None Game ------ Seed BombardmentCouplerSegregator Manual? 0 Play Time 01:15:42 Cumulative 213.3 hours Start 2021.01.04 @ 07:52:47 End 2021.01.04 @ 09:37:19 Sessions 1 Manual Loads 0 Difficulty Explorer Special Mode None Game No. 180 Rogue 54 Adventurer 60 Explorer 66 Win Type - Total 11 Types 11/0/0/0/0/0/0/0/0 Lore% 70 Gallery% 79 Achievement% 61 Wizard Run 0 Options --------- ASCII 0 Keyboard 0 Movement Numpad Keybinds 0 Fullscreen 2 Font 18/TerminusBold Map View 76x50 Tactical HUD 1 Map Filters NONE Filters NONE Steam 1 RUN: be1e359e-3bb9-4405-bfea-7257321fefd5